[Event "Gibraltar Challengers A 2019"]
[Site "Caleta"]
[Date "2019.01.23"]
[Round "3"]
[White "Ungureanu, Sandu"]
[Black "Adewole, Adeyinka"]
[Result "0-1"]
[ECO "B06"]
[WhiteElo "2057"]
[BlackElo "1972"]
[Annotator "NA"]
[PlyCount "148"]
[EventDate "2019.01.18"]
[EventType "swiss"]
[EventCountry "GGB"]
[SourceTitle "playchess.com"]
[Source "ChessBase"]
[SourceQuality "1"]
[TimeControl "6600+10"]

1. c3 {[%emt 0:00:00]} d6 {[%emt 0:18:48]} 2. d4 {[%emt 0:00:00]} g6 {[%emt 0:00:11]} 3. e4 {[%emt 0:00:06]} Bg7 {[%emt 0:00:41]} 4. f4 {[%emt 0:00:19]} f5 {[%emt 0:00:19] B06: Modern Defence} (4... Nf6 5. Nd2 O-O 6. Ngf3 c5 7. dxc5 dxc5 8. Bc4 Nc6 9. O-O e5 10. fxe5 Ng4 11. Nb3 Qxd1 12. Rxd1 Ngxe5 {0-1 (49) Kiik,K (2411)-Ladva,O (2497) Puhajarve 2018}) 5. e5 {[%emt 0:00:00]} e6 {[%emt 0:00:15]} 6. Nf3 {[%emt 0:00:34]} d5 {[%emt 0:00:11]} 7. c4 {[%emt 0:00:06]} Ne7 {[%emt 0:00:37]} 8. Nc3 {[%emt 0:00:05]} c6 {[%emt 0:00:06]} 9. cxd5 $146 {[%emt 0:00:21]} ({Predecessor:} 9. Bd3 O-O 10. Be3 Bd7 11. Qc2 Na6 12. a3 Nc7 {0-1 (63) Fatima,J (1587)-Depaune,R Batumi 2018}) 9... Nxd5 {[%emt 0:01:34]} 10. Qb3 {[%emt 0:01:29]} O-O {[%emt 0:00:51]} 11. Nxd5 {[%emt 0:01:19]} exd5 {[%emt 0:04:00]} 12. h4 {[%emt 0:01:17]} h5 {[%emt 0:00:13]} 13. Be3 {[%emt 0:00:48]} Qb6 {[%emt 0:00:45]} 14. Qxb6 {[%emt 0:04:34]} axb6 {[%emt 0:00:10]} 15. a3 {[%emt 0:01:59]} Re8 {[%emt 0:00:48]} 16. Rc1 {[%emt 0:00:19]} b5 {[%emt 0:00:44]} 17. Be2 {[%emt 0:03:02]} Be6 {[%emt 0:03:28]} 18. Ng5 {[%emt 0:01:43]} Bh6 {[%emt 0:00:44]} 19. Nxe6 {[%emt 0:04:36]} Rxe6 {[%emt 0:00:18]} 20. Rh3 {[%emt 0:00:23]} Nd7 {[%emt 0:00:06]} 21. Rg3 {[%emt 0:02:21]} Kf7 {[%emt 0:03:33]} 22. Bxb5 {[%emt 0:04:49]} cxb5 {[%emt 0:01:59]} 23. Rc7 {[%emt 0:00:18] [#]} Ke8 $1 {[%emt 0:01:42]} 24. Rxb7 {[%emt 0:01:15]} Rb8 {[%emt 0:00:31]} 25. Ra7 {[%emt 0:02:19]} Bf8 {[%emt 0:01:01]} 26. Rf3 {[%emt 0:02:56]} b4 {[%emt 0:00:22]} 27. a4 {[%emt 0:00:37]} Be7 {[%emt 0:01:11]} 28. g3 {[%emt 0:00:08]} Rc6 {[%emt 0:00:13]} 29. Kd1 {[%emt 0:01:53]} Nb6 {[%emt 0:01:29]} 30. Bc1 {[%emt 0:02:12]} Rbc8 {[%emt 0:04:00]} 31. Bd2 {[%emt 0:02:20]} Nc4 {[%emt 0:00:22]} 32. Bc1 {[%emt 0:00:20]} Nxe5 {[%emt 0:01:51]} 33. dxe5 {[%emt 0:01:51]} Rxc1+ {[%emt 0:02:36]} 34. Kd2 {[%emt 0:00:32]} R8c2+ {[%emt 0:00:26]} 35. Kd3 {[%emt 0:00:23]} Bc5 {[%emt 0:01:52]} 36. Ra8+ {[%emt 0:02:52]} Kd7 {[%emt 0:00:52]} 37. Rf1 {[%emt 0:00:05]} Rxf1 {[%emt 0:03:49]} 38. Kxc2 {[%emt 0:02:23]} Rf2+ {[%emt 0:01:39]} 39. Kb3 {[%emt 0:01:13]} Rf3+ {[%emt 0:00:09]} 40. Kc2 {[%emt 0:00:05]} b3+ {[%emt 0:00:20]} 41. Kd2 {[%emt 0:00:08]} Rxg3 {[%emt 0:00:24]} 42. a5 {[%emt 0:00:11]} Bb4+ {[%emt 0:00:22]} 43. Ke2 {[%emt 0:01:31]} Rg2+ {[%emt 0:03:33]} 44. Kd3 {[%emt 0:04:17]} Rd2+ {[%emt 0:01:16]} 45. Ke3 {[%emt 0:00:29]} d4+ {[%emt 0:00:32]} 46. Kf3 {[%emt 0:00:06]} Rxb2 {[%emt 0:00:06]} 47. a6 {[%emt 0:00:10]} Ra2 {[%emt 0:05:17]} 48. Rb8 {[%emt 0:02:02]} Ra4 {[%emt 0:01:14]} 49. a7 {[%emt 0:00:26]} b2 {[%emt 0:00:21]} 50. a8=Q {[%emt 0:02:05]} Rxa8 {[%emt 0:00:24]} 51. Rxb4 {[%emt 0:00:06]} Ra3+ {[%emt 0:00:55]} 52. Kg2 {[%emt 0:01:09]} Ra2 {[%emt 0:00:32]} 53. Kf3 {[%emt 0:00:21]} Kc6 {[%emt 0:00:46]} 54. Rb8 {[%emt 0:00:36]} Kd5 {[%emt 0:01:08]} 55. Rb4 {[%emt 0:04:53]} Kc5 {[%emt 0:01:24]} 56. Rb8 {[%emt 0:00:02]} Kc4 {[%emt 0:00:20]} 57. Rc8+ {[%emt 0:01:24]} Kd3 {[%emt 0:00:21]} 58. Rb8 {[%emt 0:00:16]} Kd2 {[%emt 0:02:27]} 59. e6 {[%emt 0:01:40]} Ra3+ {[%emt 0:04:48]} 60. Kf2 {[%emt 0:00:34]} Kc2 {[%emt 0:01:25]} 61. Rc8+ {[%emt 0:02:21]} Rc3 {[%emt 0:01:07]} 62. Rxc3+ {[%emt 0:00:12]} dxc3 {[%emt 0:00:18]} 63. e7 {[%emt 0:00:07]} b1=Q {[%emt 0:00:19]} 64. e8=Q {[%emt 0:00:10]} Qa2 {[%emt 0:01:19]} 65. Qb5 {[%emt 0:05:09]} Kd1+ {[%emt 0:02:44]} 66. Kf1 {[%emt 0:00:57]} c2 {[%emt 0:04:06]} 67. Qd3+ {[%emt 0:07:32]} Kc1 {[%emt 0:00:28]} 68. Kf2 {[%emt 0:06:05]} Qa7+ {[%emt 0:02:01]} 69. Kf1 {[%emt 0:00:58]} Qc5 {[%emt 0:00:34]} 70. Kg2 {[%emt 0:03:15]} Kb2 {[%emt 0:01:11]} 71. Qd2 {[%emt 0:01:02]} Qc3 {[%emt 0:04:04]} 72. Qe2 {[%emt 0:00:24]} Qc6+ {[%emt 0:01:02]} 73. Kf2 {[%emt 0:00:32]} Qd5 {[%emt 0:00:04]} 74. Kg3 {[%emt 0:01:57]} Kb1 {[%emt 0:00:53]} 0-1

[Event "Gibraltar Challengers A 2019"]
[Site "Caleta"]
[Date "2019.01.23"]
[Round "3"]
[White "Cao Armillas, Jesus"]
[Black "Bengherabi, Khalil"]
[Result "1-0"]
[ECO "E09"]
[WhiteElo "2048"]
[BlackElo "2150"]
[Annotator "NA"]
[PlyCount "59"]
[EventDate "2019.01.18"]
[EventType "swiss"]
[EventCountry "GGB"]
[SourceTitle "playchess.com"]
[Source "ChessBase"]
[SourceQuality "1"]
[TimeControl "6600+10"]

1. d4 {[%emt 0:45:14]} Nf6 {[%emt 0:00:58]} 2. c4 {[%emt 0:00:08]} e6 {[%emt 0:00:04]} 3. Nf3 {[%emt 0:00:04]} d5 {[%emt 0:00:07]} 4. g3 {[%emt 0:00:05]} Be7 {[%emt 0:00:18]} 5. Bg2 {[%emt 0:00:04]} O-O {[%emt 0:00:05]} 6. O-O {[%emt 0:00:03]} Nbd7 {[%emt 0:00:03]} 7. Qc2 {[%emt 0:00:17]} c6 {[%emt 0:00:04]} 8. Nbd2 {[%emt 0:00:53]} b6 {[%emt 0:00:05]} 9. b3 {[%emt 0:00:16]} Ba6 {[%emt 0:00:14]} 10. Bb2 {[%emt 0:00:32]} Rc8 {[%emt 0:00:04]} 11. Rad1 {[%emt 0:03:03] E09: Closed Catalan: Main Line: 7 Qc2 c6 8 Nbd2} (11. e4 c5 12. exd5 exd5 13. Rfd1 dxc4 14. bxc4 b5 15. d5 bxc4 16. d6 Bxd6 17. Nxc4 Bxc4 18. Rxd6 Qe7 19. Rad1 Be2 20. Rxd7 Nxd7 21. Qc3 {1-0 (41) Gupta,A (2610)-Hemant,S (2348) New Delhi 2018}) 11... c5 {[%emt 0:01:56]} 12. dxc5 {[%emt 0:03:38]} Bxc5 {[%emt 0:01:47]} 13. Qb1 {[%emt 0:15:02]} Qe7 {[%emt 0:00:16]} 14. Rc1 $146 {[%emt 0:09:42]} ({Predecessor:} 14. Rfe1 dxc4 15. Nxc4 Bxc4 16. bxc4 Bb4 17. Nd2 Bxd2 18. Rxd2 Rxc4 {½-½ (66) Thurmer,J (2193)-Taskovits,I (2305) Hungary 2003}) 14... Rfd8 {[%emt 0:03:08]} 15. e4 {[%emt 0:03:51]} dxc4 {[%emt 0:03:43]} 16. Nxc4 {[%emt 0:02:02]} b5 {[%emt 0:00:56]} 17. Nce5 {[%emt 0:02:59]} Bb7 {[%emt 0:00:55]} 18. Rfe1 {[%emt 0:02:23]} Nxe5 {[%emt 0:01:13]} 19. Nxe5 {[%emt 0:00:54]} Bb6 {[%emt 0:11:25]} 20. Rxc8 {[%emt 0:07:48]} Rxc8 {[%emt 0:00:33]} 21. Nd3 {[%emt 0:02:10]} Rd8 {[%emt 0:00:58]} 22. Qc2 {[%emt 0:09:03]} Ng4 {[%emt 0:24:45]} 23. Qe2 {[%emt 0:09:53] [#]} Rxd3 $1 {[%emt 0:04:45]} 24. Qxg4 {[%emt 0:00:52]} Bxf2+ {[%emt 0:00:23]} 25. Kxf2 {[%emt 0:00:28]} Rd2+ {[%emt 0:00:05]} 26. Re2 $17 {[%emt 0:00:43]} Qc5+ {[%emt 0:00:11]} 27. Ke1 {[%emt 0:00:33]} Rxb2 {[%emt 0:01:39]} 28. Rxb2 {[%emt 0:00:20]} Qc1+ {[%emt 0:00:45]} 29. Qd1 {[%emt 0:00:10]} Qxb2 {[%emt 0:00:57]} 30. Qd8# {[%emt 0:00:06]} 1-0

[Event "Gibraltar Challengers A 2019"]
[Site "Caleta"]
[Date "2019.01.23"]
[Round "3"]
[White "Hamer, Martyn"]
[Black "Sikkel, Dirk"]
[Result "1-0"]
[ECO "A42"]
[WhiteElo "2046"]
[BlackElo "1943"]
[Annotator "NA"]
[PlyCount "89"]
[EventDate "2019.01.18"]
[EventType "swiss"]
[EventCountry "GGB"]
[SourceTitle "playchess.com"]
[Source "ChessBase"]
[SourceQuality "1"]
[TimeControl "6600+10"]

1. d4 {[%emt 0:00:00]} g6 {[%emt 0:00:00]} 2. c4 {[%emt 0:00:08]} Bg7 {[%emt 0:00:07]} 3. e4 {[%emt 0:00:19]} d6 {[%emt 0:00:17]} 4. Nc3 {[%emt 0:00:50]} e5 {[%emt 0:00:15]} 5. d5 {[%emt 0:01:06]} a5 {[%emt 0:02:00]} 6. Be3 {[%emt 0:00:46]} Nd7 {[%emt 0:00:51]} 7. Be2 {[%emt 0:01:37] A42: Modern Defence: Averbakh Variation} (7. h3 h5 8. Nf3 Bh6 9. Bxh6 Nxh6 10. h4 Nc5 11. Ng5 Qe7 12. g3 f6 13. Nf3 Nf7 14. Bh3 Bxh3 15. Rxh3 {½-½ (56) Goryachkina,A (2478)-Sjugirov,S (2650) Sochi 2017}) 7... Nc5 {[%emt 0:00:38]} 8. g4 {[%emt 0:04:56]} Bh6 {[%emt 0:07:28]} 9. Qd2 {[%emt 0:02:42]} Bxe3 {[%emt 0:00:32]} 10. Qxe3 {[%emt 0:00:10]} f6 {[%emt 0:03:59]} 11. O-O-O $146 {[%emt 0:02:41]} ({Predecessor:} 11. f3 Bd7 12. Nh3 h5 13. Nf2 h4 14. h3 g5 {½-½ (27) Pattyn,L (1755)-Sikkel,D (1973) Brasschaat 2018}) 11... Ne7 {[%emt 0:03:30]} 12. f4 {[%emt 0:02:13]} exf4 {[%emt 0:01:59]} 13. Qxf4 {[%emt 0:02:21]} O-O {[%emt 0:02:07]} 14. Nf3 {[%emt 0:03:19]} g5 {[%emt 0:07:32]} 15. Qg3 {[%emt 0:01:16]} Ng6 {[%emt 0:00:59]} 16. h4 {[%emt 0:04:39]} Qe7 {[%emt 0:01:41]} 17. hxg5 {[%emt 0:07:14]} fxg5 {[%emt 0:06:12]} 18. e5 {[%emt 0:04:16]} Nxe5 {[%emt 0:12:27]} 19. Nxe5 {[%emt 0:01:40]} Qxe5 {[%emt 0:06:44]} 20. Qxe5 {[%emt 0:01:08]} dxe5 {[%emt 0:00:15]} 21. Rh5 {[%emt 0:00:35]} Rf7 {[%emt 0:04:06]} 22. Rxg5+ {[%emt 0:04:49]} Rg7 {[%emt 0:00:18]} 23. Rxg7+ {[%emt 0:03:02]} Kxg7 {[%emt 0:00:26]} 24. Nb5 {[%emt 0:05:41]} Bd7 {[%emt 0:12:31]} 25. Nxc7 {[%emt 0:03:41]} Rc8 {[%emt 0:00:29]} 26. d6 {[%emt 0:01:10]} Ne4 {[%emt 0:04:35]} 27. b3 {[%emt 0:06:11]} Nxd6 {[%emt 0:02:29]} 28. Rxd6 {[%emt 0:00:50]} Rxc7 {[%emt 0:00:12] [#]} 29. Rd5 $14 {[%emt 0:01:11]} (29. Kd2 $1 $16) 29... Kf6 {[%emt 0:02:23]} 30. Rxa5 {[%emt 0:00:50]} Bc6 {[%emt 0:00:22]} 31. Kd2 {[%emt 0:01:22]} Rd7+ {[%emt 0:01:35]} 32. Ke3 {[%emt 0:01:28]} Rd4 {[%emt 0:00:14]} 33. Bf3 {[%emt 0:02:34]} Bxf3 {[%emt 0:01:24]} 34. Kxf3 {[%emt 0:00:05]} Rf4+ {[%emt 0:00:24]} 35. Kg3 {[%emt 0:00:15]} Rf1 {[%emt 0:00:28]} 36. Ra8 {[%emt 0:02:51]} Ke6 {[%emt 0:04:27]} 37. Rh8 {[%emt 0:01:54]} Rf7 {[%emt 0:00:23]} 38. a4 {[%emt 0:01:33]} Rd7 {[%emt 0:01:34]} 39. Kh4 {[%emt 0:04:22]} b6 {[%emt 0:02:04]} 40. Rb8 {[%emt 0:02:08]} Rd6 {[%emt 0:01:06]} 41. Kg5 {[%emt 0:00:50]} Rc6 {[%emt 0:00:54]} 42. Re8+ {[%emt 0:01:32]} Kd6 {[%emt 0:01:20]} 43. Kf5 {[%emt 0:00:18]} Rc7 {[%emt 0:00:39]} 44. Re6+ {[%emt 0:00:43]} Kd7 {[%emt 0:00:57]} 45. Rxb6 {[%emt 0:00:35]} 1-0

[Event "Gibraltar Challengers A 2019"]
[Site "Caleta"]
[Date "2019.01.23"]
[Round "3"]
[White "Kukic, Boris"]
[Black "Ramasindraibe, Girard"]
[Result "1-0"]
[ECO "E90"]
[WhiteElo "2035"]
[BlackElo "2129"]
[Annotator "NA"]
[PlyCount "138"]
[EventDate "2019.01.18"]
[EventType "swiss"]
[EventCountry "GGB"]
[SourceTitle "playchess.com"]
[Source "ChessBase"]
[SourceQuality "1"]
[TimeControl "6600+10"]

1. d4 {[%emt 0:00:00]} Nf6 {[%emt 0:00:05]} 2. c4 {[%emt 0:00:09]} g6 {[%emt 0:01:35]} 3. Nc3 {[%emt 0:00:16]} c5 {[%emt 0:01:21]} 4. d5 {[%emt 0:01:39]} Bg7 {[%emt 0:00:12]} 5. Nf3 {[%emt 0:00:29]} d6 {[%emt 0:00:27]} 6. e4 {[%emt 0:00:26]} O-O {[%emt 0:00:08]} 7. Bd3 {[%emt 0:00:31]} e6 {[%emt 0:00:04]} 8. O-O {[%emt 0:00:35]} exd5 {[%emt 0:00:03]} 9. exd5 {[%emt 0:00:19]} Bg4 {[%emt 0:01:14]} 10. h3 {[%emt 0:00:22]} Bxf3 {[%emt 0:00:09]} 11. Qxf3 {[%emt 0:00:09]} Nfd7 {[%emt 0:02:38]} 12. Bf4 {[%emt 0:01:30] E90: King's Indian: Classical: Early deviations and 6 h3} (12. Qd1 Re8 13. Bd2 Na6 14. a3 Qh4 15. Qg4 Qxg4 16. hxg4 Nc7 17. Rfe1 h6 18. Rxe8+ Nxe8 19. g3 Nef6 {½-½ (46) Ding,L (2777)-So,W (2810) Tbilisi 2017}) 12... Ne5 {[%emt 0:00:06]} 13. Qg3 {[%emt 0:02:49]} Nbd7 {[%emt 0:03:12]} 14. Rab1 $146 {[%emt 0:01:42]} ({Predecessor:} 14. Be2 a6 15. Rad1 f5 16. Rfe1 Bf6 17. Bc1 Qe7 18. f4 Bh4 19. Qe3 Nf7 20. Qxe7 Bxe7 {½-½ (52) Dittmar,H (2032)-Dobosz,H (2440) Germany 2006}) 14... Re8 {[%emt 0:01:59]} 15. Rfd1 {[%emt 0:00:29]} f5 {[%emt 0:14:57]} 16. Bf1 {[%emt 0:00:54]} Nf6 {[%emt 0:00:13]} 17. Qh4 {[%emt 0:05:09]} Rb8 {[%emt 0:04:24]} 18. Bg5 {[%emt 0:01:11]} Nf7 {[%emt 0:04:31]} 19. Ne2 {[%emt 0:02:31]} Nxg5 {[%emt 0:01:28]} 20. Qxg5 $15 {[%emt 0:00:11]} Ne4 {[%emt 0:14:21]} 21. Qxd8 {[%emt 0:01:38]} Rbxd8 {[%emt 0:00:26]} 22. f3 {[%emt 0:00:52]} Ng5 {[%emt 0:01:48]} 23. b4 {[%emt 0:00:19]} b6 {[%emt 0:07:57]} 24. bxc5 {[%emt 0:03:05]} dxc5 {[%emt 0:00:02]} 25. a4 {[%emt 0:00:25]} Re3 {[%emt 0:04:12]} 26. h4 {[%emt 0:00:18]} Nf7 {[%emt 0:00:14]} 27. Nf4 {[%emt 0:00:15]} Bc3 {[%emt 0:10:25]} 28. Ne6 {[%emt 0:01:18]} Rd6 {[%emt 0:00:50]} 29. Kf2 {[%emt 0:00:17]} Re5 {[%emt 0:10:52]} 30. Rd3 {[%emt 0:03:40]} Bb4 {[%emt 0:04:02]} 31. Rdb3 {[%emt 0:00:22]} Nd8 {[%emt 0:00:47]} 32. Nf4 {[%emt 0:02:58]} Re7 {[%emt 0:00:56]} 33. Nd3 {[%emt 0:00:50]} Bd2 {[%emt 0:00:18]} 34. g3 {[%emt 0:00:52]} Nb7 {[%emt 0:00:23]} 35. R3b2 {[%emt 0:00:57]} Be3+ {[%emt 0:02:23]} 36. Kg2 {[%emt 0:00:13]} Na5 {[%emt 0:00:05]} 37. Rc2 {[%emt 0:00:09]} Bd4 {[%emt 0:00:06]} 38. Nf4 {[%emt 0:01:30]} Re3 {[%emt 0:00:33]} 39. Ne6 {[%emt 0:00:26]} Bf6 {[%emt 0:01:24]} 40. Rb5 {[%emt 0:00:51]} Rc3 {[%emt 0:07:20]} 41. Rxc3 {[%emt 0:01:03]} Bxc3 {[%emt 0:00:02]} 42. Rb1 {[%emt 0:00:14]} Rd7 {[%emt 0:00:19]} 43. Kf2 {[%emt 0:00:16]} Kf7 {[%emt 0:00:17]} 44. Ke3 {[%emt 0:00:06]} Ke7 {[%emt 0:00:32]} 45. Kf4 {[%emt 0:00:26]} Kf6 {[%emt 0:03:50]} 46. Ke3 {[%emt 0:00:44]} Nb7 {[%emt 0:00:21]} 47. Kd3 {[%emt 0:00:23]} Bb4 {[%emt 0:00:21]} 48. Bh3 {[%emt 0:00:26]} Nd8 {[%emt 0:00:12]} 49. Nf4 {[%emt 0:00:29]} Nf7 {[%emt 0:00:13]} 50. Bf1 {[%emt 0:00:46]} Re7 {[%emt 0:00:09]} 51. Ne6 {[%emt 0:00:16]} Rd7 {[%emt 0:01:19]} 52. Ke3 {[%emt 0:00:17]} Nd8 {[%emt 0:00:16]} 53. Nf4 {[%emt 0:00:11]} Re7+ {[%emt 0:00:10]} 54. Kd3 {[%emt 0:00:10]} Ba5 {[%emt 0:00:48]} 55. Rd1 {[%emt 0:00:44]} Bb4 {[%emt 0:00:58]} 56. g4 {[%emt 0:01:40]} fxg4 {[%emt 0:00:34]} 57. fxg4 {[%emt 0:00:04]} Kg7 {[%emt 0:00:02]} 58. Bg2 {[%emt 0:01:14]} Re5 {[%emt 0:00:39]} 59. Rf1 {[%emt 0:00:18]} Ba3 {[%emt 0:00:11]} 60. g5 {[%emt 0:00:24]} Bb2 {[%emt 0:00:06]} 61. Rb1 {[%emt 0:00:25]} Bd4 {[%emt 0:00:03]} 62. Be4 {[%emt 0:00:16]} Re7 {[%emt 0:00:19]} 63. a5 {[%emt 0:00:13]} bxa5 {[%emt 0:00:26]} 64. Rb8 {[%emt 0:00:05]} Nb7 {[%emt 0:00:14]} 65. Ne6+ {[%emt 0:00:41]} Rxe6 {[%emt 0:00:04]} 66. dxe6 {[%emt 0:00:04]} Nd6 {[%emt 0:00:10]} 67. Bd5 {[%emt 0:00:16]} Be5 {[%emt 0:00:14]} 68. e7 {[%emt 0:00:15]} h6 {[%emt 0:00:08]} 69. Rd8 {[%emt 0:00:44]} hxg5 {[%emt 0:00:13]} 1-0

[Event "Gibraltar Challengers A 2019"]
[Site "Caleta"]
[Date "2019.01.23"]
[Round "3"]
[White "Herzwurm, Robert"]
[Black "Crocker, Philip J"]
[Result "0-1"]
[ECO "B12"]
[WhiteElo "2021"]
[BlackElo "2109"]
[Annotator "NA"]
[PlyCount "88"]
[EventDate "2019.01.18"]
[EventType "swiss"]
[EventCountry "GGB"]
[SourceTitle "playchess.com"]
[Source "ChessBase"]
[SourceQuality "1"]
[TimeControl "6600+10"]

1. e4 {[%emt 0:00:00]} c6 {[%emt 0:00:00]} 2. d4 {[%emt 0:00:07]} d5 {[%emt 0:00:03]} 3. e5 {[%emt 0:00:10]} c5 {[%emt 0:00:10]} 4. dxc5 {[%emt 0:02:08]} e6 {[%emt 0:00:15]} 5. Be3 {[%emt 0:02:26]} Nd7 {[%emt 0:00:19]} 6. Nf3 {[%emt 0:12:50]} Bxc5 {[%emt 0:00:35]} 7. Bxc5 {[%emt 0:03:47]} Nxc5 {[%emt 0:00:05]} 8. Be2 {[%emt 0:05:29]} Ne7 {[%emt 0:01:15]} 9. O-O {[%emt 0:09:13]} O-O {[%emt 0:00:10]} 10. Nbd2 {[%emt 0:07:03]} Bd7 {[%emt 0:01:31]} 11. Nd4 {[%emt 0:15:45]} Qb6 {[%emt 0:05:40]} 12. N2b3 {[%emt 0:13:05]} Rac8 {[%emt 0:08:35]} 13. Bd3 {[%emt 0:14:44]} Nxd3 {[%emt 0:05:33]} 14. Qxd3 {[%emt 0:01:32]} a5 {[%emt 0:03:53]} 15. Rab1 {[%emt 0:03:52]} a4 {[%emt 0:06:47]} 16. Nd2 {[%emt 0:00:47]} Rc5 {[%emt 0:02:47]} 17. N2f3 {[%emt 0:02:18]} Bb5 $15 {[%emt 0:02:13]} 18. Nxb5 {[%emt 0:00:18]} Qxb5 {[%emt 0:00:55]} 19. Nd4 {[%emt 0:02:40]} Qxd3 {[%emt 0:00:55]} 20. cxd3 {[%emt 0:00:05]} Rfc8 {[%emt 0:00:46]} 21. Rfd1 {[%emt 0:00:49]} Nc6 {[%emt 0:08:39]} 22. Nxc6 {[%emt 0:01:19]} R8xc6 {[%emt 0:00:07]} 23. d4 {[%emt 0:02:52]} Rc2 {[%emt 0:00:56]} 24. Kf1 {[%emt 0:00:20]} Rb6 {[%emt 0:07:37]} 25. Rdc1 {[%emt 0:03:19]} Rbxb2 {[%emt 0:00:56]} 26. Rxc2 {[%emt 0:01:39]} Rxc2 {[%emt 0:06:46]} 27. Rxb7 {[%emt 0:00:10]} g5 {[%emt 0:00:38]} 28. Rb4 {[%emt 0:03:09]} Rxa2 {[%emt 0:00:37]} 29. Rb8+ {[%emt 0:00:15]} Kg7 {[%emt 0:00:04]} 30. Ra8 {[%emt 0:00:02]} a3 {[%emt 0:01:27]} 31. Ke1 {[%emt 0:00:27]} Kg6 {[%emt 0:00:33]} 32. g4 {[%emt 0:00:10]} h5 {[%emt 0:05:32]} 33. h3 {[%emt 0:00:04]} h4 {[%emt 0:01:17]} 34. Rg8+ {[%emt 0:00:14]} Kh7 {[%emt 0:00:37]} 35. Ra8 {[%emt 0:00:14]} Kg7 {[%emt 0:00:08]} 36. Ra7 {[%emt 0:00:09]} Kf8 {[%emt 0:04:12]} 37. Ra8+ {[%emt 0:00:03]} Ke7 {[%emt 0:00:05]} 38. Ra7+ {[%emt 0:00:06]} Ke8 {[%emt 0:00:08]} 39. Ra8+ {[%emt 0:00:04]} Kd7 {[%emt 0:00:23]} 40. Rf8 {[%emt 0:00:08]} Rb2 {[%emt 0:02:52]} 41. Rxf7+ {[%emt 0:00:20]} Kc6 {[%emt 0:00:50]} 42. f4 {[%emt 0:01:09]} a2 {[%emt 0:03:04]} 43. Ra7 {[%emt 0:00:18]} gxf4 {[%emt 0:01:51]} 44. g5 {[%emt 0:00:13]} Rb1+ {[%emt 0:00:51]} 0-1

[Event "Gibraltar Challengers A 2019"]
[Site "Caleta"]
[Date "2019.01.23"]
[Round "3"]
[White "Boardman, Jeffrey"]
[Black "Nandi, Robin J"]
[Result "0-1"]
[ECO "A01"]
[WhiteElo "2005"]
[BlackElo "1903"]
[Annotator "NA"]
[PlyCount "68"]
[EventDate "2019.01.18"]
[EventType "swiss"]
[EventCountry "GGB"]
[SourceTitle "playchess.com"]
[Source "ChessBase"]
[SourceQuality "1"]
[TimeControl "6600+10"]

1. b3 {[%emt 0:00:00]} e5 {[%emt 0:03:11]} 2. Bb2 {[%emt 0:00:00]} Nc6 {[%emt 0:00:42]} 3. e3 {[%emt 0:00:18]} d6 {[%emt 0:03:16]} 4. Bb5 {[%emt 0:00:17]} a6 {[%emt 0:01:53]} 5. Bxc6+ {[%emt 0:00:56]} bxc6 {[%emt 0:00:02]} 6. Ne2 {[%emt 0:03:52]} Nf6 {[%emt 0:00:47]} 7. O-O {[%emt 0:01:09]} Be7 {[%emt 0:01:32]} 8. d3 {[%emt 0:06:36]} O-O {[%emt 0:01:21]} 9. Nd2 {[%emt 0:00:05]} Re8 {[%emt 0:05:33]} 10. c4 {[%emt 0:01:08]} Bf8 $11 {[%emt 0:07:30]} 11. e4 {[%emt 0:02:22]} d5 {[%emt 0:04:31]} 12. Qc2 {[%emt 0:05:44]} Bd6 {[%emt 0:03:24]} 13. h3 {[%emt 0:01:41]} Rb8 {[%emt 0:16:37]} 14. Rad1 {[%emt 0:14:18]} Bb7 {[%emt 0:04:55]} 15. c5 {[%emt 0:01:23]} Bf8 {[%emt 0:00:27]} 16. f4 {[%emt 0:10:21]} exf4 {[%emt 0:04:42]} 17. e5 {[%emt 0:02:05]} d4 {[%emt 0:04:25]} 18. Bxd4 {[%emt 0:05:40]} Nd5 {[%emt 0:04:06]} 19. Nxf4 {[%emt 0:08:05]} Nxf4 {[%emt 0:00:53]} 20. Rxf4 {[%emt 0:00:22]} g5 {[%emt 0:02:03]} 21. Re4 {[%emt 0:01:45]} f5 {[%emt 0:00:37]} 22. exf6 {[%emt 0:00:25]} Rxe4 {[%emt 0:01:20]} 23. Qc4+ {[%emt 0:00:08]} Qd5 {[%emt 0:07:23]} 24. dxe4 {[%emt 0:01:04]} Qxc4 {[%emt 0:00:20]} 25. Nxc4 {[%emt 0:00:07]} Rd8 {[%emt 0:00:19]} 26. Rd2 {[%emt 0:01:10]} Rxd4 {[%emt 0:00:32]} 27. Re2 {[%emt 0:05:05]} Bxc5 {[%emt 0:00:23]} 28. Kh2 {[%emt 0:00:03]} Kf7 {[%emt 0:06:51]} 29. e5 {[%emt 0:00:12]} Bc8 {[%emt 0:01:08]} 30. Nd2 {[%emt 0:00:25]} Rd5 {[%emt 0:02:07]} 31. Nf3 {[%emt 0:04:31]} h6 {[%emt 0:00:39]} 32. g4 {[%emt 0:00:52]} Be6 {[%emt 0:02:21]} 33. Nd2 {[%emt 0:00:46]} Rxe5 {[%emt 0:01:32]} 34. Rxe5 {[%emt 0:03:07]} Bd6 {[%emt 0:00:08] Re4 [%emt 00:00:19]} 0-1

[Event "Gibraltar Challengers A 2019"]
[Site "Caleta"]
[Date "2019.01.23"]
[Round "3"]
[White "Tovarek, Antonin"]
[Black "Fischer, Gerd"]
[Result "1/2-1/2"]
[ECO "C41"]
[WhiteElo "1995"]
[BlackElo "1845"]
[Annotator "NA"]
[PlyCount "62"]
[EventDate "2019.01.18"]
[EventType "swiss"]
[EventCountry "GGB"]
[SourceTitle "playchess.com"]
[Source "ChessBase"]
[SourceQuality "1"]
[TimeControl "6600+10"]

1. e4 {[%emt 0:00:00]} d6 {[%emt 0:00:00]} 2. d4 {[%emt 0:00:00]} Nf6 {[%emt 0:00:07]} 3. Nc3 {[%emt 0:00:00]} e5 {[%emt 0:00:11]} 4. Nf3 {[%emt 0:00:02]} exd4 {[%emt 0:00:46]} 5. Nxd4 $14 {[%emt 0:00:02] LiveBook: 2698 Games} Be7 {[%emt 0:00:16]} 6. Be2 {[%emt 0:00:07]} O-O {[%emt 0:00:25]} 7. g4 {[%emt 0:02:58]} d5 {[%emt 0:06:29]} 8. e5 {[%emt 0:00:38]} Ne4 {[%emt 0:00:55]} 9. Nxe4 {[%emt 0:00:46]} dxe4 {[%emt 0:00:08]} 10. Be3 {[%emt 0:03:08]} Qd5 {[%emt 0:04:20]} 11. Nf5 {[%emt 0:02:47]} Qxe5 {[%emt 0:08:54]} 12. Qd4 {[%emt 0:07:51]} Bf6 {[%emt 0:02:14]} 13. Qxe5 {[%emt 0:08:42]} Bxe5 {[%emt 0:02:02]} 14. Ne7+ {[%emt 0:00:03]} Kh8 {[%emt 0:00:14]} 15. O-O-O {[%emt 0:00:07]} Be6 {[%emt 0:05:56]} 16. f4 {[%emt 0:04:16]} exf3 {[%emt 0:13:24]} 17. Bxf3 {[%emt 0:00:20]} c6 {[%emt 0:00:27]} 18. Rd2 {[%emt 0:07:06]} Nd7 {[%emt 0:01:47]} 19. Rhd1 {[%emt 0:01:43]} Nb6 {[%emt 0:05:46]} 20. b3 {[%emt 0:04:33]} g6 {[%emt 0:07:52]} 21. a4 {[%emt 0:03:01]} Bf6 {[%emt 0:14:47]} 22. a5 {[%emt 0:07:27]} Bxe7 {[%emt 0:02:05]} 23. axb6 {[%emt 0:01:25]} axb6 {[%emt 0:00:09]} 24. Kb2 {[%emt 0:08:22]} Bf6+ {[%emt 0:02:46]} 25. Bd4 {[%emt 0:00:39]} Bxd4+ {[%emt 0:00:18]} 26. Rxd4 {[%emt 0:00:02]} Rfe8 {[%emt 0:00:16]} 27. h4 {[%emt 0:00:09]} Kg7 {[%emt 0:00:05]} 28. g5 {[%emt 0:00:18]} Kh8 {[%emt 0:00:01]} 29. Rb4 {[%emt 0:01:00]} h5 30. Rf4 {[%emt 0:00:14]} b5 31. Rfd4 {[%emt 0:02:27]} Rad8 1/2-1/2